[Event "MCCT Oslo Esports Cup 2022"]
[Site "Oslo"]
[Date "2022.04.20"]
[Round "4.3"]
[White "Carlsen, Magnus"]
[Black "Praggnanandhaa R"]
[Result "1-0"]
[ECO "D32"]
[WhiteElo "2864"]
[BlackElo "2624"]
[Annotator "TA"]
[PlyCount "69"]
[EventDate "2022.04.14"]
[EventType "tourn"]
[EventCountry "NOR"]
[SourceTitle "playchess.com"]
[Source "ChessBase"]
[SourceQuality "1"]
[TimeControl "1500+10"]

{[%evp 16,69,29,7,12,9,24,0,4,2,42,43,44,43,52,49,78,75,46,36,39,0,17,18,52,46,50,40,52,51,40,42,56,39,192,180,203,133,458,456,594,582,862,932,930,922,919,912,29987,29988,29988,29989,29989,29990,29998,29999]} 1. Nf3 {[%emt 0:10:00]} d5 {[%emt 0:10:00]} 2. e3 {[%emt 0:00:03]} Nf6 {[%emt 0:00:07]} 3. c4 {[%emt 0:00:02]} e6 {[%emt 0:00:00]} 4. Nc3 {[%emt 0:00:02]} c5 {[%emt 0:00:05]} 5. d4 {[%emt 0:00:18]} Nc6 {[%emt 0:00:18]} 6. cxd5 {[%emt 0:00:31]} exd5 {[%emt 0:00:03]} 7. Bb5 {[%emt 0:00:00]} cxd4 {[%emt 0:00:07] is now more promising than 7...Bd6.} 8. Nxd4 {[%emt 0:00:04]} Bd7 {[%emt 0:00:01]} 9. O-O {[%emt 0:00:01]} Bd6 {[%emt 0:00:01] D32: Tarrasch Defence: Sidelines and lines without g3.} 10. Nf3 {[%emt 0:00:02][%cal Oe3e4]} Be6 {[%emt 0:00:10]} 11. b3 {[%emt 0:00:07]} O-O {[%emt 0:00:06] The position is equal.} 12. Bb2 {[%emt 0:00:01]} Bg4 {[%emt 0:00:59]} 13. h3 $5 {[%emt 0:00:45][%mdl 4] A promising side line.} Bh5 {[%emt 0:00:14]} 14. Be2 {[%emt 0:00:05]} (14. Nxd5 $2 Nxd5 15. Qe2 (15. Qxd5 $2 Bh2+ 16. Kxh2 Qxd5 $19) (15. g4 $2 Bg6 $19) 15... a6 16. Bxc6 bxc6 $19) 14... Rc8 {[%emt 0:00:34]} 15. Nh4 {[%emt 0:00:27] [#]} ({Not} 15. Nxd5 $2 Nxd5 16. Rc1 (16. Qxd5 $2 Bh2+ 17. Kxh2 Qxd5 $19) (16. g4 $2 Bg6 $19) 16... Bg6 $1 $19) 15... Bg6 $146 {[%emt 0:00:14]} ({Predecessor:} 15... Bxe2 16. Nxe2 Bb8 17. Nf5 Qd7 18. Neg3 Be5 19. Bxe5 Nxe5 20. Qd4 Nc6 21. Qf4 Qe6 22. Rac1 Rfd8 {1-0 (38) Melkumyan,H (2654)-Kulaots,K (2574) Minsk 2015}) 16. Nxg6 {[%emt 0:01:18]} (16. Nxd5 $2 Nxd5 17. Nxg6 hxg6 $19) 16... hxg6 {[%emt 0:00:00]} 17. Nb5 {[%emt 0:00:19]} ({Don't go for} 17. Nxd5 $2 Nxd5 18. Rc1 (18. Qxd5 $2 Bh2+ 19. Kxh2 Qxd5 $19) 18... Nf6 $19) 17... Bb8 {[%emt 0:00:18]} 18. Bf3 {[%emt 0:00:02]} a6 {[%emt 0:00:22]} 19. Nd4 {[%emt 0:00:03]} Re8 {[%emt 0:00:45]} 20. Nxc6 {[%emt 0:00:22]} bxc6 {[%emt 0:00:30]} 21. Qd3 {[%emt 0:00:11]} a5 {[%emt 0:02:09]} 22. Rac1 {[%emt 0:00:48]} Ne4 {[%emt 0:02:32]} 23. Bxe4 {[%emt 0:00:15] And now Bf3 would win.} Rxe4 {[%emt 0:00:00]} 24. Rc2 {[%emt 0:00:06]} (24. Rfd1 $5 {[%cal Rc1c6]}) 24... Rh4 $2 {[%emt 0:01:46] [#]} (24... a4 $14) 25. Rfc1 $1 $18 {[%emt 0:00:44]} Qd6 {[%emt 0:00:16] Threatens to win with ...Qh2+.} 26. Kf1 $40 {[%emt 0:01:55][%mdl 128] Hoping for Qa6. White is out for blood.} Rh5 $2 {[%emt 0:01:58][%mdl 8192] A mistake that costs the game.} (26... c5 $16 {is a better chance.}) 27. Qa6 $1 {[%emt 0:01:40][%csl LRa5,LRc6,LRc8]} Rf8 {[%emt 0:00:05]} 28. Rxc6 {[%emt 0:00:08]} Qh2 {[%emt 0:00:03]} 29. Rc8 {[%emt 0:00:06] Rxf8+ would kill now. Active counter play!} Bd6 {[%emt 0:01:10]} 30. Rxf8+ {[%emt 0:00:03]} Bxf8 {[%emt 0:00:01]} 31. Rc8 {[%emt 0:00:09][%cal Oc8f8] Intending Rxf8+! and mate.} ({Worse is} 31. f4 Be7 $11) 31... Rf5 {[%emt 0:01:04] [#]} 32. Rxf8+ $1 {[%emt 0:00:03][%mdl 512] White mates.} Kxf8 {[%emt 0:00:10]} 33. Qc8+ {[%emt 0:00:03]} Ke7 {[%emt 0:00:01]} 34. Ba3+ {[%emt 0:00:01]} Kf6 {[%emt 0:00:03]} 35. Qd8+ {[%emt 0:00:01] Weighted Error Value: White=0.07 (flawless) /Black=0.87} 1-0

[Event "MCCT Oslo Esports Cup 2022"]
[Site "Oslo"]
[Date "2022.04.20"]
[Round "4.3"]
[White "Giri, Anish"]
[Black "Van Foreest, Jorden"]
[Result "1/2-1/2"]
[ECO "E94"]
[WhiteElo "2773"]
[BlackElo "2714"]
[Annotator "TA"]
[PlyCount "44"]
[EventDate "2022.04.14"]
[EventType "tourn"]
[EventCountry "NOR"]
[SourceTitle "playchess.com"]
[Source "ChessBase"]
[SourceQuality "1"]
[TimeControl "1500+10"]

{[%evp 15,44,41,34,37,41,27,47,45,68,41,43,41,57,52,50,23,34,26,64,50,75,63,63,0,63,0,65,0,73,0,74]} 1. d4 {[%emt 0:10:00]} Nf6 {[%emt 0:10:00]} 2. c4 {[%emt 0:00:02]} g6 {[%emt 0:00:02]} 3. Nc3 {[%emt 0:00:00]} Bg7 {[%emt 0:00:08]} 4. e4 {[%emt 0:00:01]} d6 {[%emt 0:00:02]} 5. Nf3 {[%emt 0:00:01][%cal Bg1f3,Bf3e1,Be1d3][%mdl 32]} O-O {[%emt 0:00:02]} 6. Be2 {[%emt 0:00:01]} e5 {[%emt 0:00:02]} 7. O-O {[%emt 0:00:00]} Bg4 {[%emt 0:00:00]} 8. d5 {[%emt 0:00:02]} a5 {[%emt 0:00:01]} 9. Be3 {[%emt 0:00:19] 9.Be3 scores better than 9.Ne1. E94: King's Indian: Classical: 6 Be2 e5 7 0-0: Various Black 7th moves.} Na6 {[%emt 0:00:11][%cal Bb8a6,Ba6b4,Bb4d3][%mdl 32]} 10. Ne1 {[%emt 0:00:02]} Bd7 {[%emt 0:00:48]} 11. Nd3 {[%emt 0:00:02] White is slightly better.} h5 {[%emt 0:00:20] [#]} 12. h3 $146 {[%emt 0:00:18]} ({Predecessor:} 12. a3 Ng4 13. Bd2 Qh4 14. h3 Nf6 15. f3 Nh7 16. Be1 Qe7 17. b4 Bf6 18. Kh2 {0-1 (57) Suder,J (2321)-Gaehwiler,G (2406) Chess.com INT 2022}) 12... b6 {[%emt 0:00:21]} 13. Qd2 {[%emt 0:00:07]} Nh7 {[%emt 0:01:11]} 14. Rae1 {[%emt 0:00:38]} Nb4 {[%emt 0:00:29]} 15. a3 {[%emt 0:00:24]} Nxd3 {[%emt 0:00:02]} 16. Bxd3 {[%emt 0:00:01]} a4 {[%emt 0:00:55]} 17. Bc2 {[%emt 0:00:01]} Bf6 {[%emt 0:00:02]} 18. Qd1 {[%emt 0:00:12][%cal Rc2a4] &Bianco is more active.} Qe8 {[%emt 0:00:08]} 19. Qd2 {[%emt 0:00:34]} (19. Bh6 $14) 19... Qe7 {[%emt 0:00:05]} (19... Qd8 $1 $11) 20. Qd1 {[%emt 0:00:02][%cal Rc2a4]} Qe8 $1 {[%emt 0:00:01]} 21. Qd2 {[%emt 0:00:00]} Qe7 {[%emt 0:00:01]} 22. Qd1 {[%emt 0:00:01][%cal Rc2a4]} Qe8 $1 {[%emt 0:00:01] Weighted Error Value: White=0.24 (precise) /Black=0.13 (very precise)} 1/2-1/2

[Event "MCCT Oslo Esports Cup 2022"]
[Site "Oslo"]
[Date "2022.04.20"]
[Round "4.3"]
[White "Duda, Jan-Krzysztof"]
[Black "Mamedyarov, Shakhriyar"]
[Result "0-1"]
[ECO "D38"]
[WhiteElo "2750"]
[BlackElo "2771"]
[Annotator "TA"]
[PlyCount "68"]
[EventDate "2022.04.14"]
[EventType "tourn"]
[EventCountry "NOR"]
[SourceTitle "playchess.com"]
[Source "ChessBase"]
[SourceQuality "1"]
[TimeControl "1500+10"]

{[%evp 19,68,0,0,0,0,0,0,-5,0,-7,0,-76,-66,-91,-93,-109,-97,-285,-284,-298,-297,-282,-284,-281,-213,-206,-200,-292,-297,-290,-292,-413,-394,-529,-530,-506,-510,-645,-604,-1162,-1147,-1123,-1066,-1208,-1027,-29990,-29991,-29996,-482,-29997,-29998]} 1. d4 {[%emt 0:10:00]} Nf6 {[%emt 0:10:00]} 2. c4 {[%emt 0:00:02]} e6 {[%emt 0:00:01]} 3. Nf3 {[%emt 0:00:02]} d5 {[%emt 0:00:01]} 4. Nc3 {[%emt 0:00:01]} Bb4 {[%emt 0:00:00]} 5. cxd5 {[%emt 0:00:04]} exd5 {[%emt 0:00:00]} 6. Qa4+ {[%emt 0:00:26]} Nc6 {[%emt 0:00:03]} 7. Bg5 {[%emt 0:00:01]} h6 {[%emt 0:00:20]} 8. Bxf6 {[%emt 0:00:02]} Qxf6 {[%emt 0:00:00]} 9. e3 {[%emt 0:00:01]} O-O {[%emt 0:00:10]} 10. Rc1 {[%emt 0:00:03]} Rd8 {[%emt 0:00:13]} 11. Bd3 {[%emt 0:00:26] [#] D38: Queen's Gambit Declined: Ragozin Defence (4 Nf3 Bb4).} Bf8 $5 $146 {[%emt 0:00:42][%mdl 8] An interesting novelty.} ({Predecessor:} 11... Bg4 12. Qd1 Ne7 13. h3 Bh5 14. a3 Bd6 15. g4 Bg6 16. Ke2 c6 17. h4 Qe6 18. Rg1 Re8 {1-0 (47) Duda,J (2738)-Nepomniachtchi,I (2792) Zagreb 2021}) 12. Qd1 {[%emt 0:01:14]} Ne7 {[%emt 0:01:10]} 13. O-O {[%emt 0:00:27] The position is equal.} c6 {[%emt 0:00:27]} 14. Ne5 {[%emt 0:00:21]} Nf5 {[%emt 0:00:58]} 15. Qf3 {[%emt 0:00:56] [#]} (15. h3 $11) 15... Bd6 $1 $17 {[%emt 0:00:24]} 16. Bxf5 {[%emt 0:06:58]} Bxf5 {[%emt 0:00:05]} 17. Qg3 {[%emt 0:00:01]} Qe6 {[%emt 0:00:26] White must now prevent ...f6.} 18. f4 $2 {[%emt 0:04:07]} (18. Ne2 $17) 18... f6 $19 {[%emt 0:00:11]} 19. Ng6 {[%emt 0:00:32]} Bxg6 {[%emt 0:00:08]} 20. Qxg6 {[%emt 0:00:00]} Qxe3+ {[%emt 0:00:03]} 21. Kh1 {[%emt 0:00:01]} Re8 {[%emt 0:00:30]} ({Resist} 21... Bxf4 22. Rce1 Qxd4 23. Re7 $18) 22. Rcd1 {[%emt 0:00:10]} Bb4 {[%emt 0:02:48]} 23. h3 {[%emt 0:01:31]} (23. Qc2 {was worth a try.}) 23... Bxc3 {[%emt 0:00:21]} 24. bxc3 {[%emt 0:00:00]} Qxc3 {[%emt 0:00:43]} 25. Rd3 {[%emt 0:00:06]} (25. Kh2 $142) 25... Qc2 {[%emt 0:00:17]} 26. Rff3 {[%emt 0:00:02]} Re1+ {[%emt 0:00:23]} 27. Kh2 {[%emt 0:00:01]} Qb1 {[%emt 0:00:10] Threatens to win with ...Rae8.} 28. Qh5 {[%emt 0:00:31]} Rae8 {[%emt 0:00:57] ...R8e2 is the strong threat.} 29. Rb3 {[%emt 0:00:10]} Rh1+ {[%emt 0:00:09]} 30. Kg3 {[%emt 0:00:01]} Qe1+ {[%emt 0:00:02]} 31. Kg4 {[%emt 0:00:03]} Rg1 {[%emt 0:00:43]} 32. g3 {[%emt 0:01:15]} Qe6+ {[%emt 0:00:24]} 33. f5 {[%emt 0:00:02]} Qe4+ {[%emt 0:00:03]} 34. Rf4 {[%emt 0:00:07] [#]} Qxf4+ $3 {[%emt 0:00:13][%mdl 512] Black took control after the opening.  Weighted Error Value: White=0.82/Black=0.08 (flawless)} 0-1

[Event "MCCT Oslo Esports Cup 2022"]
[Site "Oslo"]
[Date "2022.04.20"]
[Round "4.3"]
[White "Hansen, Eric"]
[Black "Le, Quang Liem"]
[Result "0-1"]
[ECO "C78"]
[WhiteElo "2606"]
[BlackElo "2709"]
[Annotator "TA"]
[PlyCount "104"]
[EventDate "2022.04.14"]
[EventType "tourn"]
[EventCountry "NOR"]
[SourceTitle "playchess.com"]
[Source "ChessBase"]
[SourceQuality "1"]
[TimeControl "1500+10"]

{[%evp 17,104,39,37,0,0,0,14,0,0,0,10,0,27,-4,-18,-39,-36,-41,-52,-57,-44,-38,-41,-140,-82,-66,-66,-63,-52,-50,-58,-57,-67,-101,-104,-203,-208,-195,-220,-209,-210,-222,-218,-217,-220,-210,-225,-210,-206,-202,-211,-182,-173,-266,-244,-282,-285,-307,-293,-301,-322,-389,-389,-429,-386,-468,-459,-479,-381,-517,-371,-550,-541,-511,-435,-505,-447,-670,-402,-410,-396,-840,-477,-490,-493,-508,-508,-515,-503]} 1. e4 {[%emt 0:10:00]} e5 {[%emt 0:10:00]} 2. Nf3 {[%emt 0:00:05]} Nc6 {[%emt 0:00:02]} 3. Bb5 {[%emt 0:00:25][%cal Bf1b5,Bb5a4,Ba4b3][%mdl 32]} a6 {[%emt 0:00:02]} 4. Ba4 {[%emt 0:00:00]} Nf6 {[%emt 0:00:02]} 5. O-O {[%emt 0:00:00]} b5 {[%emt 0:00:04]} 6. Bb3 {[%emt 0:00:02]} Bc5 {[%emt 0:00:01]} 7. c3 {[%emt 0:00:48]} d6 {[%emt 0:00:03]} 8. d4 {[%emt 0:00:00]} Bb6 {[%emt 0:00:03]} 9. a4 {[%emt 0:00:01]} Rb8 {[%emt 0:00:03]} 10. a5 {[%emt 0:00:05] C78: Ruy Lopez: Archangelsk and Möller Defences.} Ba7 {[%emt 0:00:01]} (10... Nxa5 11. Rxa5 Bxa5 12. dxe5) (10... Bxa5 $2 11. dxe5 (11. d5 Ne7 $18) 11... dxe5 12. Qxd8+ Kxd8 13. Bd5 (13. Bxf7 Bb6 $16) 13... Nxd5 14. exd5 $18) 11. h3 {[%emt 0:00:05]} O-O {[%emt 0:00:02]} 12. Re1 {[%emt 0:00:54] The position is equal.} h6 {[%emt 0:01:00]} 13. Be3 {[%emt 0:01:46]} Ra8 {[%emt 0:00:03] 13...exd4 is vanishing.} 14. Nbd2 {[%emt 0:01:48]} Re8 {[%emt 0:00:02]} 15. d5 {[%emt 0:01:46]} Ne7 {[%emt 0:00:34]} 16. c4 {[%emt 0:00:01]} c6 {[%emt 0:00:14] [#]} 17. Qc2 $146 {[%emt 0:02:36]} ({Predecessor:} 17. Bxa7 Rxa7 18. Nb1 bxc4 19. Bxc4 cxd5 20. exd5 Rc7 21. b3 Rc5 22. Nc3 Rxa5 23. Rc1 {½-½ (45) Osmanodja,F (2291)-Lagno,K (2523) Reykjavik 2015}) 17... Bxe3 {[%emt 0:01:56]} 18. fxe3 {[%emt 0:00:03]} Bb7 {[%emt 0:01:32][%cal Bc8b7,Bb7c6,Bc6d5,Bd5b3,Bb3e6][%mdl 32]} 19. dxc6 {[%emt 0:02:34]} Bxc6 {[%emt 0:00:38]} 20. c5 {[%emt 0:00:23]} (20. Nh4 $15) 20... Ng6 {[%emt 0:00:39]} ({Black should play} 20... Rc8 {Strongly threatening ...Bb7.} 21. cxd6 Qxd6) 21. cxd6 $17 {[%emt 0:00:49]} Qxd6 {[%emt 0:00:06]} 22. Red1 {[%emt 0:00:07][%cal Od2c4]} Rac8 {[%emt 0:00:07] And now ...Bb7 would win. &Nero is more active.} 23. Nc4 $1 {[%emt 0:00:15]} Qb4 {[%emt 0:01:38]} ({Much less strong is} 23... Qc5 24. Nd6 Qxe3+ 25. Kh1 $14) 24. Nd6 {[%emt 0:00:54] [#]} Bd5 {[%emt 0:00:06]} 25. Nxc8 {[%emt 0:01:05] White is on the road to losing.} (25. Qd2 Qxd6) 25... Bxb3 {[%emt 0:00:03]} 26. Qd2 {[%emt 0:00:12]} Qxd2 $19 {[%emt 0:00:10]} 27. Rxd2 {[%emt 0:00:00]} Rxc8 {[%emt 0:00:01]} 28. Rd6 {[%emt 0:00:00]} Ra8 {[%emt 0:00:38]} ({Inferior is} 28... Nxe4 29. Rxa6 Ne7 30. Nxe5 $11) 29. Nd2 {[%emt 0:00:03] [#]} Be6 {[%emt 0:00:39]} 30. Rc1 {[%emt 0:00:02]} Ne7 {[%emt 0:02:06] Against Rcc6} 31. Rc5 {[%emt 0:00:43]} Kf8 {[%emt 0:01:00]} 32. Rxe5 {[%emt 0:00:34] [#]} Ke8 $1 {[%emt 0:01:41]} 33. Rc5 {[%emt 0:00:06]} Nd7 {[%emt 0:00:15]} 34. Rc7 {[%emt 0:00:24]} Kd8 {[%emt 0:00:25]} 35. Rc1 {[%emt 0:00:23]} (35. Rc3 $142) 35... Rc8 {[%emt 0:00:46]} 36. Rd1 {[%emt 0:00:39]} Nc6 {[%emt 0:00:20]} 37. Nf3 {[%emt 0:00:06]} Ke7 {[%emt 0:00:05]} 38. e5 {[%emt 0:00:23]} b4 {[%emt 0:01:47][%cal Bb5b4,Bb4b3][%mdl 32]} ({Weaker is} 38... Ncxe5 39. Nxe5 Nxe5 40. Rxa6 $11) 39. e4 {[%emt 0:00:23]} b3 {[%emt 0:00:20]} 40. Kh2 {[%emt 0:00:55]} Nc5 {[%emt 0:00:26]} 41. Nd4 {[%emt 0:00:11]} Nxe5 {[%emt 0:00:21] Pair of Knights!} 42. Nf5+ {[%emt 0:00:13]} Kf6 {[%emt 0:00:23]} 43. Rf1 {[%emt 0:00:06]} g6 {[%emt 0:00:23]} 44. Nd4+ {[%emt 0:00:23]} (44. Rb6 $142 Kg5 45. Nd6) 44... Ke7 {[%emt 0:00:02]} 45. Rb6 {[%emt 0:00:00]} Ned3 {[%emt 0:00:20] Against Rc1} 46. Nc6+ {[%emt 0:00:13]} Kf8 {[%emt 0:00:05]} 47. Nb8 {[%emt 0:00:08]} (47. Nb4 $142 Bc4 48. Nxd3 Nxd3 49. Rd1) 47... Nxb2 {[%emt 0:00:16]} 48. Nxa6 {[%emt 0:00:01]} Bc4 {[%emt 0:00:24]} 49. Rc1 $2 {[%emt 0:00:21]} (49. Nxc5 Bxf1 50. Nxb3) 49... Nxa6 {[%emt 0:00:15] Black is clearly winning.} 50. Rxb3 {[%emt 0:00:05]} Bxb3 {[%emt 0:00:16]} 51. Rxc8+ {[%emt 0:00:03]} Ke7 {[%emt 0:00:02]} 52. Rc6 {[%emt 0:00:34]} Bc4 {[%emt 0:00:07] Weighted Error Value: White=0.46/Black=0.23 (precise)} 0-1

[Event "MCCT Oslo Esports Cup 2022"]
[Site "Oslo"]
[Date "2022.04.20"]
[Round "4.4"]
[White "Mamedyarov, Shakhriyar"]
[Black "Duda, Jan-Krzysztof"]
[Result "1/2-1/2"]
[ECO "D94"]
[WhiteElo "2771"]
[BlackElo "2750"]
[Annotator "TA"]
[PlyCount "86"]
[EventDate "2022.04.14"]
[EventType "tourn"]
[EventCountry "NOR"]
[SourceTitle "playchess.com"]
[Source "ChessBase"]
[SourceQuality "1"]
[TimeControl "1500+10"]

{[%evp 21,86,1,0,11,10,11,0,0,14,20,18,19,12,16,20,24,24,0,16,0,1,0,53,0,0,0,0,0,36,29,46,8,9,0,0,-64,-70,-64,-65,-61,-64,-57,-53,-57,-54,-69,-66,-57,-4,-7,-12,-12,0,-8,0,0,0,0,0,0,32,0,0,0,14,0,0]} 1. d4 {[%emt 0:10:00]} Nf6 {[%emt 0:10:00]} 2. c4 {[%emt 0:00:01]} g6 {[%emt 0:00:01]} 3. Nc3 {[%emt 0:00:01]} d5 {[%emt 0:00:00]} 4. Nf3 {[%emt 0:00:02]} Bg7 {[%emt 0:00:02]} 5. e3 {[%emt 0:00:02][%cal Be2e3,Be3d4,Bd4d5][%mdl 32]} O-O {[%emt 0:00:07]} 6. cxd5 {[%emt 0:00:01]} Nxd5 {[%emt 0:00:02]} 7. Bc4 {[%emt 0:00:01]} Nb6 {[%emt 0:00:26]} 8. Bb3 {[%emt 0:00:03]} c5 {[%emt 0:00:00]} 9. O-O {[%emt 0:00:04]} cxd4 {[%emt 0:00:35]} 10. exd4 {[%emt 0:00:02]} Nc6 {[%emt 0:00:06]} 11. d5 {[%emt 0:00:06]} Na5 {[%emt 0:00:01]} 12. h3 {[%emt 0:00:10] D94: Grünfeld: 4 Nf3 Bg7 5 e3.} Nxb3 {[%emt 0:00:29]} 13. axb3 {[%emt 0:00:00]} Bxc3 {[%emt 0:01:33]} 14. bxc3 {[%emt 0:00:00] And now c4 would win.} Qxd5 {[%emt 0:00:06]} 15. Bd2 {[%emt 0:00:02]} f6 {[%emt 0:02:24]} 16. c4 {[%emt 0:00:20][%mdl 1024] White has compensation.} Qf7 {[%emt 0:01:03]} 17. Be3 {[%emt 0:01:25] [#] aiming for Bxb6.} Bf5 {[%emt 0:00:12] [#]} 18. Nd4 $146 {[%emt 0:01:07]} ({Predecessor:} 18. Nh4 Be4 19. Qg4 Bc6 20. Nf5 Kh8 21. Nh6 Qg7 22. Rfd1 e5 23. Ra2 Rfe8 24. Qe2 {½-½ (48) Parshin,V (2423)-Goretov,A (2352) ICCF email 2018}) 18... Bd7 $1 {[%emt 0:00:07]} 19. Ra5 {[%emt 0:00:48]} Rfd8 {[%emt 0:01:15]} 20. Qa1 {[%emt 0:01:22]} Nc8 {[%emt 0:02:07][%cal Bb6c8,Bc8d6,Bd6f5][%mdl 32]} ({Resist} 20... e5 21. Nb5 Nc8 22. Rd1 $16) 21. Rd1 {[%emt 0:00:46]} Re8 {[%emt 0:00:42]} (21... Qe8 $11) 22. Nb5 {[%emt 0:02:06]} (22. Rd5 $1 $14 Nd6 23. Bf4) 22... Bxb5 $11 {[%emt 0:00:12]} 23. Rxb5 {[%emt 0:00:00]} Nd6 {[%emt 0:00:10]} 24. Rbd5 {[%emt 0:00:23]} a6 {[%emt 0:01:11]} 25. Qa5 {[%emt 0:00:23]} Nf5 {[%emt 0:00:26]} 26. Bc5 {[%emt 0:00:25]} Qe6 {[%emt 0:00:35]} 27. Rd7 {[%emt 0:02:04]} b5 {[%emt 0:00:18]} 28. Qb6 {[%emt 0:01:36]} ({Better is} 28. Rc7 $11 Rac8 29. Re1 Qxe1+ 30. Qxe1 Rxc7 31. Qe6+ Kh8 32. b4) 28... Qxb6 $15 {[%emt 0:00:37]} 29. Bxb6 {[%emt 0:00:00]} bxc4 {[%emt 0:01:24]} 30. bxc4 {[%emt 0:00:00]} Rac8 {[%emt 0:00:24]} 31. c5 {[%emt 0:00:07]} Ng7 {[%emt 0:00:08]} 32. Ra7 {[%emt 0:03:06]} Ne6 {[%emt 0:00:04]} 33. Rd5 {[%emt 0:00:32]} Rc6 {[%emt 0:00:45]} 34. g3 {[%emt 0:00:02]} g5 {[%emt 0:00:11]} (34... Kf7 $15) 35. Kg2 $11 {[%emt 0:00:24]} Kf7 {[%emt 0:00:03][%cal Oe6c5]} 36. Kf3 $1 {[%emt 0:00:09]} h5 {[%emt 0:01:05]} 37. Ke4 {[%emt 0:00:17]} h4 {[%emt 0:01:13]} 38. gxh4 {[%emt 0:00:14]} gxh4 {[%emt 0:00:00]} 39. f4 {[%emt 0:00:01] Prevents Ng5+.} Rec8 {[%emt 0:00:24][%cal Re6c5]} 40. Rdd7 {[%emt 0:00:02]} Re8 {[%emt 0:00:00]} 41. Rd5 {[%emt 0:00:01]} Rec8 {[%emt 0:00:20][%cal Re6c5] The position is equal.} 42. Rdd7 {[%emt 0:00:01]} Re8 {[%emt 0:00:20]} 43. Rd5 {[%emt 0:00:19]} Rec8 {[%emt 0:00:04] Weighted Error Value: White=0.10 (very precise) /Black=0.09 (flawless)} 1/2-1/2

[Event "MCCT Oslo Esports Cup 2022"]
[Site "Oslo"]
[Date "2022.04.20"]
[Round "4.4"]
[White "Van Foreest, Jorden"]
[Black "Giri, Anish"]
[Result "1/2-1/2"]
[ECO "C65"]
[WhiteElo "2714"]
[BlackElo "2773"]
[Annotator "TA"]
[PlyCount "60"]
[EventDate "2022.04.14"]
[EventType "tourn"]
[EventCountry "NOR"]
[SourceTitle "playchess.com"]
[Source "ChessBase"]
[SourceQuality "1"]
[TimeControl "1500+10"]

{[%evp 9,60,8,18,2,12,6,4,0,26,35,30,29,27,33,35,31,20,28,17,20,24,18,11,17,28,12,16,14,14,0,2,9,9,2,2,0,0,0,0,8,8,0,0,0,0,0,0,0,0,0,0,0,0]} 1. e4 {[%emt 0:10:00]} e5 {[%emt 0:10:00]} 2. Nf3 {[%emt 0:00:04]} Nc6 {[%emt 0:00:01]} 3. Bb5 {[%emt 0:00:02]} Nf6 {[%emt 0:00:01]} 4. d3 {[%emt 0:00:15]} Bc5 {[%emt 0:00:02]} 5. Nbd2 {[%emt 0:00:16]} Nd4 {[%emt 0:00:21]} 6. Nxd4 {[%emt 0:00:21] C65: Ruy Lopez: Berlin Defence (3...Nf6), unusual lines and 4 0-0 Bc5.} Bxd4 {[%emt 0:00:00]} 7. c3 {[%emt 0:00:10]} Bb6 {[%emt 0:00:01]} 8. d4 {[%emt 0:00:01]} c6 {[%emt 0:00:01] [#]} 9. dxe5 $1 {[%emt 0:00:19]} cxb5 {[%emt 0:00:02]} 10. exf6 {[%emt 0:00:06]} Qxf6 {[%emt 0:00:00][%csl Gb6][%cal Rf6f2]} 11. O-O {[%emt 0:00:04][%cal Oe4e5]} O-O {[%emt 0:00:02]} 12. Nf3 {[%emt 0:00:25]} d6 {[%emt 0:00:28] Inhibits e5.} 13. Re1 {[%emt 0:00:16]} Bg4 {[%emt 0:00:03]} 14. Be3 {[%emt 0:00:04]} b4 {[%emt 0:01:00]} 15. Bxb6 {[%emt 0:00:33]} axb6 {[%emt 0:00:02] [#]} 16. cxb4 $146 {[%emt 0:00:03]} ({Predecessor:} 16. Qd4 Bxf3 17. Qxf6 gxf6 18. gxf3 bxc3 19. bxc3 Rfc8 20. Reb1 Rxc3 21. Rxb6 Rxf3 22. Rxb7 {½-½ (31) Nakamura,H (2754)-Aronian,L (2752) Zagreb 2019}) 16... Qxb2 {[%emt 0:00:26]} 17. Qd4 {[%emt 0:00:11]} Rxa2 {[%emt 0:00:27] The position is equal.} 18. Rxa2 {[%emt 0:00:00]} Qxa2 {[%emt 0:00:01]} 19. Nh4 {[%emt 0:00:01]} Qe6 {[%emt 0:01:05]} 20. h3 {[%emt 0:00:10]} Qe7 {[%emt 0:00:17]} 21. hxg4 {[%emt 0:00:04]} Qxh4 $11 {[%emt 0:00:01][%mdl 4096] Endgame KQR-KQR} 22. Qd5 {[%emt 0:00:03]} Qe7 {[%emt 0:01:29]} 23. Rd1 {[%emt 0:00:21]} g6 {[%emt 0:01:34]} 24. f3 {[%emt 0:00:41]} Rd8 {[%emt 0:00:25]} 25. e5 {[%emt 0:02:11][%cal Re5d6]} Re8 {[%emt 0:01:39]} 26. exd6 {[%emt 0:02:04]} Qe3+ {[%emt 0:00:02]} 27. Kh2 {[%emt 0:00:33]} Qf4+ {[%emt 0:00:10]} 28. Kg1 {[%emt 0:00:25] Threatens to win with d7.} Qe3+ {[%emt 0:00:01]} 29. Kh2 {[%emt 0:00:04] Strongly threatening d7.} Qf4+ {[%emt 0:00:01]} 30. Kg1 {[%emt 0:00:18] [#] Black must now prevent d7.} Qe3+ {[%emt 0:00:01] Weighted Error Value: White=0.03 (flawless) /Black=0.02 (flawless)} 1/2-1/2